Cogmind - Beta 17 @@@ ROGUE MODE // 2026.08.05 @ 21:09:11 Player: Suffixing Result: Destroyed by G-47 Trooper with Particle Gun Performance ------------- Evolutions (3) 1500 Regions Visited (10) 2000 Robots Destroyed (229) 1145 Value Destroyed (9964) 9964 Prototype IDs (12) 240 Alien Tech Used (0) 0 Bonus (4594) 4594 TOTAL SCORE: 19443 Bonus ------- High Alert Combat Kills 1846 Follower Combat Kills 465 Entered Garrisons 800 Used RIF Installer 1500 Friendly Fire -17 Cogmind --------- Core Integrity 0/700 Matter 136/300 Energy 100/100 System Corruption 25% Temperature Warm (189) Movement Core (1350) Ox26 Location -7/Garrison Parts ------- > --- POWER (1) -------- (None) > --- PROPULSION (4) --- (None) > --- UTILITY (5) ------ Huge Storage Unit Relay Coupler [NC] (22) > --- WEAPON (3) ------- (None) > --- INVENTORY (25) --- Improved Deuterium Engine Flexi-carbon Leg Transmission Jammer Improved Shield Generator Relay Coupler [NC] (26) Relay Coupler [NC] (29) Relay Coupler [NC] (23) Relay Coupler [NC] (25) Relay Coupler [Swarmer] (29) Relay Coupler [Swarmer] (34) Relay Coupler [Grunt] (33) Relay Coupler [Specialist] (22) Relay Coupler [Hunter] (13) Relay Coupler [Hunter] (17) Relay Coupler [Hunter] (18) Relay Coupler [Heavy] (12) Rocket Array Plasma Cutter Heavy Mace Peak State ------------ > --- POWER ------------ Light Neutrino Core > --- PROPULSION ------- Myomer Leg Myomer Leg Biometal Leg Biometal Leg > --- UTILITY ---------- Huge Storage Unit Improved Light Armor Plating Relay Coupler [NC] Relay Coupler [Swarmer] Relay Coupler [Grunt] > --- WEAPON ----------- Heavy Mass Driver Remote Datajack > --- INVENTORY -------- Improved Deuterium Engine Flexi-carbon Leg Transmission Jammer Improved Light Armor Plating Improved Shield Generator Relay Coupler [NC] Relay Coupler [NC] Relay Coupler [NC] Relay Coupler [NC] Relay Coupler [Swarmer] Relay Coupler [Swarmer] Relay Coupler [Grunt] Relay Coupler [Specialist] Relay Coupler [Hunter] Relay Coupler [Hunter] Relay Coupler [Hunter] Relay Coupler [Heavy] Heavy Mass Driver Rocket Array Plasma Cutter Heavy Mace [Rating: 72] Favorites ----------- Power Cooled Ion Engine Engine Cooled Ion Engine Power Core Light Neutrino Core Propulsion Light Treads Treads Light Treads Leg Myomer Leg Wheel Armored Huge Wheel Utility Hardened Light Armor Plating Device Improved Heat Sink Storage High-capacity Storage Unit Hackware Relay Coupler [NC] Protection Hardened Light Armor Plating Weapon Improved Assault Rifle Energy Gun Gatling Laser Ballistic Gun Improved Assault Rifle Ballistic Cannon Heavy Mass Driver Launcher Heavy Missile Launcher Special Weapon Remote Datajack Impact Weapon Heavy Mace Special Melee Weapon Datajack Build | -11 -10 -9 -8 -8 -8 -8 -7 -7 -7 -7 ------- Run | Yrd Mat Mat Mat Gar Mat Gar Fac Gar Fac Gar Slots Evolved 6 | . . 2 2 . . . 2 . . . Power . | . . . . . . . . . . . Propulsion 2 | . . . 1 . . . 1 . . . Utility 3 | . . 2 . . . . 1 . . . Weapon 1 | . . . 1 . . . . . . . Parts Attached 123 | 2 4 18 15 9 1 23 35 13 1 2 Power 9 | . 1 1 1 1 . 2 2 1 . . Engine 5 | . 1 1 1 1 . 1 . . . . Core 4 | . . . . . . 1 2 1 . . Reactor . | . . . . . . . . . . . Propulsion 36 | 2 . 6 6 2 . 2 12 6 . . Treads 27 | 2 . 6 4 . . 2 12 1 . . Leg 5 | . . . . . . . . 5 . . Wheel 4 | . . . 2 2 . . . . . . Hover . | . . . . . . . . . . . Flight . | . . . . . . . . . . . Utility 44 | . 3 4 6 3 1 12 12 2 . 1 Device 8 | . . 1 1 1 1 2 2 . . . Storage 4 | . 2 . . 1 . . 1 . . . Processor . | . . . . . . . . . . . Hackware 15 | . . . 2 . . 7 4 2 . . Protection 17 | . 1 3 3 1 . 3 5 . . 1 Artifact . | . . . . . . . . . . . Weapon 34 | . . 7 2 3 . 7 9 4 1 1 Energy Gun 4 | . . . . . . 1 2 1 . . Energy Cannon . | . . . . . . . . . . . Ballistic Gun 21 | . . 6 2 2 . 4 5 2 . . Ballistic Cannon 3 | . . . . . . . . 1 1 1 Launcher 1 | . . . . 1 . . . . . . Special Weapon 2 | . . . . . . 1 1 . . . Impact Weapon 2 | . . . . . . 1 1 . . . Slashing Weapon . | . . . . . . . . . . . Piercing Weapon . | . . . . . . . . . . . Special Melee Weapon 1 | . . 1 . . . . . . . . Unidentified Prototypes 3 | . . 2 . . . . 1 . . . Corrupted Parts 2 | . . . . . . . 2 . . . System Corruption 16 | . . . . . . . 16 . . . Parts Lost 55 | . . . 2 5 . 10 18 9 . 11 Power 6 | . . . 1 . . 2 1 1 . 1 Propulsion 15 | . . . 1 1 . 2 5 3 . 3 Utility 15 | . . . . 2 . 2 5 2 . 4 Weapon 19 | . . . . 2 . 4 7 3 . 3 Highest Loss Streak 11 | . . . 1 2 . 5 5 3 . 11 To Critical Strikes . | . . . . . . . . . . . Average Backups 17 | 5 6 14 14 17 20 19 20 22 19 20 Power 1 | 1 1 1 1 1 1 1 . . . 1 Propulsion 2 | 4 1 5 4 3 2 . 1 2 1 1 Utility 8 | . 1 1 3 7 13 13 12 13 14 14 Weapon 3 | . 2 4 4 3 3 2 3 3 2 2 Tool/Special . | . . . . . . . . . . . Unused Backups 55 | . 7 14 4 2 1 6 4 1 . 16 Power 7 | . 1 3 1 . . 1 1 . . . Propulsion 9 | . . 5 2 . . . 1 1 . . Utility 25 | . 1 . 1 2 1 5 1 . . 14 Weapon 13 | . 5 6 . . . . 1 . . 1 Tool/Special 1 | . . . . . . . . . . 1 Average Slot Usage (%) 92 | . 92 99 96 81 81 88 96 95 92 85 Engine 5 | . 14 11 8 9 9 3 . . . . Core 2 | . . . . . . 3 6 6 7 7 Treads 20 | . 28 22 18 9 9 18 29 27 . . Leg 1 | . . . . . . . . 2 30 26 Wheel 3 | . . . 8 9 9 2 . . . . Device 5 | . . 3 9 8 9 8 4 4 . . Storage 9 | . 14 11 9 9 9 9 7 7 7 7 Hackware 7 | . . . . . . 11 16 19 23 22 Protection 11 | . 7 29 15 9 9 4 6 4 7 6 Energy Gun 1 | . . . . . . 3 2 7 . . Ballistic Gun 20 | . 28 22 26 26 27 18 19 2 . . Peak Build Rating 72 | 6 10 24 33 42 43 44 52 71 71 72 Average Rating 34 | 6 7 20 29 38 41 33 42 50 70 64 On Entrance 33 | 6 6 9 22 32 41 43 29 51 59 71 Avg Prop Armor Cover (%) 6 | . . . 9 4 5 6 . 6 . . Naked Turns . | . . . . . . . . . . . Heaviest Build 116 | 12 34 49 59 83 79 83 105 116 114 114 Greatest Support 106 | 40 40 46 69 28 28 66 106 106 106 106 Greatest Overweight (x) 4 | . . 1 3 3 2 2 2 4 1 4 Average Overweight (x) 1 | . . . 1 2 2 1 . . 1 1 Largest Inventory Capacity 25 | 8 15 15 15 20 20 20 25 25 25 25 Average Capacity 18 | 8 12 15 15 19 20 20 22 25 25 25 Most Carried 25 | 5 13 15 15 20 20 20 23 25 22 22 Average Carried 17 | 4 6 14 14 18 19 19 20 23 20 21 Final Capacity 25 | 8 15 15 15 20 20 20 25 25 25 25 Final Carried 23 | 2 10 15 15 20 20 20 23 22 22 19 Class Distribution -------------------- 30% | Bothacker-Tank 24% | Tank 23% | Mutant 8% | Bothacker-Gunner 8% | Bothacker-Mutant 4% | Scavenger-Tank Dominant Class ---------------- Mutant | -10/Materials Mutant | -9/Materials Tank | -8/Materials Tank | -8/Garrison Bothacker-Tank | -8/Materials Bothacker-Gunner | -8/Garrison Bothacker-Tank | -7/Factory Bothacker-Mutant | -7/Garrison Bothacker-Mutant | -7/Factory Bothacker-Mutant | -7/Garrison Resources | -11 -10 -9 -8 -8 -8 -8 -7 -7 -7 -7 ----------- Run | Yrd Mat Mat Mat Gar Mat Gar Fac Gar Fac Gar Matter Collected 7960 | 200 194 831 1204 1777 131 992 1813 657 118 43 Remotely . | . . . . . . . . . . . Salvage Created 9377 | . 253 1847 1667 2099 234 913 1661 516 17 170 Parts 525 | . 29 116 92 118 14 44 90 18 . 4 Haulers Intercepted 14 | . 2 5 4 . 1 . 2 . . . Recyclers Shooed 5 | . 1 . 1 . 2 . 1 . . . Parts Field Recycled . | . . . . . . . . . . . Retrieved Matter . | . . . . . . . . . . . Parts Self-Destructed . | . . . . . . . . . . . Prevented . | . . . . . . . . . . . Parts Restored . | . . . . . . . . . . . Kills | -11 -10 -9 -8 -8 -8 -8 -7 -7 -7 -7 ------- Run | Yrd Mat Mat Mat Gar Mat Gar Fac Gar Fac Gar Combat Hostiles Destroyed 189 | . 9 33 32 47 3 18 29 13 1 4 Guns 170 | . 9 33 32 39 3 18 29 7 . . Cannons 10 | . . . . . . . . 5 1 4 AOE 8 | . . . . 8 . . . . . . Classes Destroyed 16 | . 4 5 1 1 1 2 1 1 . . Worker 4 | . . . 2 . 1 . 1 . . . Builder 3 | . 1 . 1 . . . 1 . . . Hauler 14 | . 2 5 4 . 1 . 2 . . . Recycler 5 | . . 2 2 . . . 1 . . . Mechanic 3 | . . . . . . . 3 . . . Operator 3 | . . 1 2 . . . . . . . Watcher 8 | . 2 3 2 . . . 1 . . . Swarmer 47 | . 9 3 13 16 . . 2 4 . . Saboteur 4 | . . . . 4 . . . . . . Grunt 80 | . . 20 11 18 . 8 16 4 . 3 Brawler 2 | . . . . . . 1 1 . . . Duelist 5 | . . 3 . . . 1 . 1 . . Sentry 38 | . . 7 8 9 2 3 5 3 . 1 Specialist 1 | . . . . . . 1 . . . . Hunter 2 | . . . . . . . . 1 1 . Programmer 10 | . . . . . 1 4 5 . . . Best Kill Streak 8 | . 4 6 7 8 2 3 5 3 1 4 Combat Bots Only 8 | . 3 5 6 8 2 3 5 3 1 4 Max Kills in Single Turn 4 | . 2 1 2 4 1 1 2 1 1 1 Gunslinging 1 | . 1 . 1 1 . . 1 . . . Exploded 4 | . . . . 4 . . . . . . Melee . | . . . . . . . . . . . Uniques/NPCs Destroyed . | . . . . . . . . . . . Combat | -11 -10 -9 -8 -8 -8 -8 -7 -7 -7 -7 -------- Run | Yrd Mat Mat Mat Gar Mat Gar Fac Gar Fac Gar Hostile Shots Fired 1419 | . 41 117 108 184 14 153 426 224 16 136 Missed 456 | . 12 28 30 50 2 48 156 89 7 34 Hits 963 | . 29 89 78 134 12 105 270 135 9 102 Melee 11 | . . 3 . . . 1 1 2 . 4 Projectile 952 | . 29 86 78 134 12 104 269 133 9 98 AOE 9 | . . . . . . . . 9 . . Critical Strikes 27 | . . 1 . 1 1 7 6 1 1 9 Part Disruptions 1 | . . . . . . . 1 . . . Damage Taken 12688 | . 248 1172 985 1842 175 1709 3253 1691 109 1504 Core 1329 | . 59 156 74 97 47 190 274 187 . 245 Absorbed by Shields 62 | . . . . 62 . . . . . . Regen/Repaired (Parts) 374 | . . 115 57 . . . 202 . . . Core Remaining (%) 65 | 100 76 61 . . . 25 . . . . Volleys Fired 668 | . 25 109 88 161 16 79 115 55 7 13 Largest 3 | . 2 2 3 3 3 3 3 3 1 1 Hottest 188 | . 40 46 71 71 69 88 188 188 65 65 Shots Fired 1578 | . 50 218 264 423 48 177 283 97 6 12 Gun 1477 | . 50 218 264 415 48 158 257 67 . . Cannon 44 | . . . . . . . . 27 6 11 Launcher 11 | . . . . 8 . 3 . . . . Special 46 | . . . . . . 16 26 3 . 1 Kinetic 1432 | . 50 218 264 415 48 152 216 52 6 11 Thermal 89 | . . . . . . 6 41 42 . . Explosive 11 | . . . . 8 . 3 . . . . Electromagnetic . | . . . . . . . . . . . Robot Hit Streak 54 | . 7 15 17 54 11 12 16 11 4 7 Robot Miss Streak 6 | . 3 4 4 3 3 3 3 6 1 1 Penetration Max 1 | . . . . . . . 1 . . 1 Secondary Targets 39 | . 2 3 10 11 . 4 6 3 . . Max Gunslinging Chain 1 | . 1 1 1 1 . 1 1 1 . . Shots Hit Robots 1109 | . 25 153 174 313 28 129 194 80 4 9 Core Hits 486 | . 15 67 74 138 9 45 89 44 1 4 Critical Kills 7 | . . 2 1 3 . . 1 . . . Critical Parts Destroyed 8 | . . . 1 5 . 1 1 . . . Critical Strikes 20 | . . 2 2 8 . 1 2 3 . 2 Destroy 15 | . . 2 2 8 . 1 2 . . . Blast 5 | . . . . . . . . 3 . 2 Melee Attacks 33 | . . . . . . 13 4 16 . . Impact 33 | . . . . . . 13 4 16 . . Slashing . | . . . . . . . . . . . Piercing . | . . . . . . . . . . . Sneak Attacks . | . . . . . . . . . . . Combat Hostiles . | . . . . . . . . . . . Follow-up Attacks . | . . . . . . . . . . . Damage Inflicted 19336 | . 334 2301 2716 4125 459 2128 3741 2632 301 599 Guns 15689 | . 305 2277 2701 3771 459 1716 3462 998 . . Cannons 1820 | . . . . . . . . 1033 188 599 Explosions 636 | . . . . 354 . . 169 . 113 . Melee 1069 | . . . . . . 412 63 594 . . Ramming 122 | . 29 24 15 . . . 47 7 . . Kinetic 15713 | . 305 2277 2701 3771 459 1630 2488 1295 188 599 Thermal 1965 | . . . . . . 86 1143 736 . . Explosive 467 | . . . . 354 . . . . 113 . Electromagnetic . | . . . . . . . . . . . Impact 1069 | . . . . . . 412 63 594 . . Slashing . | . . . . . . . . . . . Piercing . | . . . . . . . . . . . Highest Corruption 22 | . . . . . . 4 16 16 16 22 Average Corruption 11 | . . . . . . 3 11 16 16 16 Corruption Purged 5 | . . . . . . . 5 . . . Corruption Blocked . | . . . . . . . . . . . Effects 195 | . . . . . . 33 85 59 9 9 Message Errors 50 | . . . . . . 12 21 16 . 1 Matter Fused 44 | . . . . . . 6 23 12 2 1 Heat Flow Errors 22 | . . . . . . 5 9 6 1 1 Energy Discharges 21 | . . . . . . 3 9 7 1 1 Parts Rejected 3 | . . . . . . . 1 1 . 1 Parts Fused 4 | . . . . . . . 3 1 . . Data Loss (minor) 19 | . . . . . . 2 10 5 1 1 Data Loss (major) 10 | . . . . . . 1 6 3 . . Misfires 6 | . . . . . . . 2 2 1 1 Alerts 2 | . . . . . . 1 . . 1 . Misdirections 3 | . . . . . . . . 3 . . Weapon Failures 11 | . . . . . . 3 1 3 2 2 Overload Shots . | . . . . . . . . . . . Overflow Damage 283 | . . . . 10 . . 71 68 130 4 Projectiles 129 | . . . . . . . . 68 57 4 Explosions 141 | . . . . 10 . . 58 . 73 . Melee 13 | . . . . . . . 13 . . . Knockbacks 11 | . 1 . . . . . 1 7 2 . Impact 2 | . 1 . . . . . 1 . . . Kinetic 9 | . . . . . . . . 7 2 . Secondary . | . . . . . . . . . . . Self-Inflicted Damage 185 | . . . 7 17 . 61 100 . . . Shots 4 | . . . . 1 . 1 2 . . . Rammed 19 | . 6 3 2 . . . 7 1 . . Targets Rammed 22 | . 7 3 2 . . . 9 1 . . Kicked . | . . . . . . . . . . . Crushed 3 | . 1 . . . . . 2 . . . Highest Temperature 510 | . . 303 19 183 4 342 308 224 147 510 Average Temperature 75 | . . 65 4 94 4 144 72 42 51 207 Received Heat Transfer 4209 | . . 513 369 828 27 558 1029 378 . 507 Effects 8 | . . 2 . . . . 3 . . 3 Shutdowns 1 | . . . . . . . . . . 1 Energy Bleed 1 | . . . . . . . . . . 1 Interference 5 | . . 2 . . . . 3 . . . Matter Decay 1 | . . . . . . . . . . 1 Siege Activations . | . . . . . . . . . . . Martial Activations . | . . . . . . . . . . . Shielding Activations . | . . . . . . . . . . . Robots Disrupted . | . . . . . . . . . . . Combat Hostiles . | . . . . . . . . . . . Robots Corrupted . | . . . . . . . . . . . Combat Hostiles . | . . . . . . . . . . . Parts Fried . | . . . . . . . . . . . Impact Corruptions 1 | . . . . . . . 1 . . . Robots Melted 1 | . . . . . . . . 1 . . Combat Hostiles 1 | . . . . . . . . 1 . . Parts Melted 11 | . . . . . . 2 4 5 . . Heat Transferred 3912 | . . . . . . 146 2275 1491 . . Parts Sabotaged . | . . . . . . . . . . . Parts Stolen . | . . . . . . . . . . . Parts Stripped . | . . . . . . . . . . . Power Chain Reactions . | . . . . . . . . . . . Alert | -11 -10 -9 -8 -8 -8 -8 -7 -7 -7 -7 ------- Run | Yrd Mat Mat Mat Gar Mat Gar Fac Gar Fac Gar Maximum Alert Level 5 | . . 1 1 5 4 4 3 3 2 1 Low Security (%) 26 | 100 100 75 53 . . . . . . . Level 1 19 | . . 24 46 15 . . 20 7 14 100 Level 2 25 | . . . . 6 . . 76 71 85 . Level 3 15 | . . . . 25 9 63 2 20 . . Level 4 11 | . . . . 30 90 36 . . . . Level 5 3 | . . . . 22 . . . . . . High Security . | . . . . . . . . . . . Max Security . | . . . . . . . . . . . Peak Influence 2321 | . 81 318 381 2321 1167 1348 722 795 468 301 Initial 1131 | . . . 121 207 1131 753 707 331 411 266 Average 562 | . 25 128 198 1172 1122 1062 489 555 419 268 Influence Increases 6955 | . 277 952 948 2164 118 795 1003 544 79 75 Destroy 0b10 Robot/C 3665 | . 180 660 640 940 60 360 555 195 15 60 Destroy 0b10 Robot/NC 227 | . 25 55 65 20 10 . 44 8 . . Destroy Leader 664 | . 38 186 172 30 32 16 158 16 8 8 Allied During Kill 37 | . . . . . . 12 25 . . . Successful Hack 107 | . 17 15 5 16 . 11 32 11 . . Disable Machine 195 | . . 15 45 . 15 . 84 12 24 . Anti-Garrison Action 1503 | . . . . 1000 . 352 . 151 . . Destroy Structure 278 | . 2 6 6 128 1 44 21 31 32 7 Partial Spotted 12 | . . . . . . . 12 . . . Lose Combat Pursuer 267 | . 15 15 15 30 . . 72 120 . . Influence Decreases 6724 | . 277 664 917 162 1280 606 1877 233 484 224 Entered New Map 3147 | . . . 167 112 1190 406 641 143 374 114 Time Decay 2304 | . 277 541 580 . 90 . 706 . 110 . Lost Part 550 | . . . 20 50 . 100 180 90 . 110 Lost Ally 300 | . . . . . . 100 200 . . . Purge Threat 423 | . . 123 150 . . . 150 . . . Squads Dispatched 26 | . . 5 4 . 1 . 16 . . . Investigation 9 | . . 4 2 . . . 3 . . . Extermination 5 | . . . . . . . 5 . . . Reinforcement 4 | . . 1 1 . . . 2 . . . Assault 1 | . . . . . . . 1 . . . Garrison 7 | . . . 1 . 1 . 5 . . . Intercept . | . . . . . . . . . . . Searches Triggered . | . . . . . . . . . . . Construction Impeded 1 | . . . . . . . 1 . . . Haulers Reinforced . | . . . . . . . . . . . Active Scanning Responses . | . . . . . . . . . . . Cargo Convoy Interrupts . | . . . . . . . . . . . Stealth | -11 -10 -9 -8 -8 -8 -8 -7 -7 -7 -7 --------- Run | Yrd Mat Mat Mat Gar Mat Gar Fac Gar Fac Gar Distress Signals 7 | . 1 3 2 . . . 1 . . . Communications Jammed . | . . . . . . . . . . . Distress Signals . | . . . . . . . . . . . Times Spotted 290 | . 15 51 43 42 4 26 64 33 1 11 Peak Tracking Total 8 | . 4 3 6 8 2 3 5 7 1 8 Tactical Retreats 18 | . 1 1 1 2 . . 5 8 . . Traps | -11 -10 -9 -8 -8 -8 -8 -7 -7 -7 -7 ------- Run | Yrd Mat Mat Mat Gar Mat Gar Fac Gar Fac Gar Traps Triggered 29 | . . 2 . 12 . 7 3 3 . 2 Indirectly . | . . . . . . . . . . . Trap Hack Attempts . | . . . . . . . . . . . Triggered . | . . . . . . . . . . . Disarmed . | . . . . . . . . . . . Reprogrammed . | . . . . . . . . . . . Reused . | . . . . . . . . . . . Traps Extracted . | . . . . . . . . . . . Installed . | . . . . . . . . . . . Triggered . | . . . . . . . . . . . Machines | -11 -10 -9 -8 -8 -8 -8 -7 -7 -7 -7 ---------- Run | Yrd Mat Mat Mat Gar Mat Gar Fac Gar Fac Gar Machines Disabled 28 | . . 1 3 7 1 4 7 3 2 . Max in Single Turn 7 | . . 1 1 2 1 1 7 1 1 . Garrison Relay 11 | . . . . 5 . 4 . 2 . . Phase Generator 1 | . . . . 1 . . . . . . Machines Repaired . | . . . . . . . . . . . Machines Dismantled . | . . . . . . . . . . . Machines Sabotaged . | . . . . . . . . . . . Overloaded Fab Kills . | . . . . . . . . . . . Hacking | -11 -10 -9 -8 -8 -8 -8 -7 -7 -7 -7 --------- Run | Yrd Mat Mat Mat Gar Mat Gar Fac Gar Fac Gar Machines Accessed 40 | . 7 8 7 4 1 2 9 1 1 . Terminals 28 | . 7 5 5 4 . 2 4 1 . . Fabricators 1 | . . . . . . . 1 . . . Repair Stations 4 | . . 1 1 . . . 2 . . . Recycling Units . | . . . . . . . . . . . Scanalyzers 2 | . . 2 . . . . . . . . Garrison Access 5 | . . . 1 . 1 . 2 . 1 . Total Hacks 79 | . 10 15 18 11 2 5 16 1 1 . Successful 35 | . 5 10 6 1 2 2 7 1 1 . Failed 44 | . 5 5 12 10 . 3 9 . . . Catastrophic 12 | . 2 1 2 4 . 1 2 . . . Database Lockouts . | . . . . . . . . . . . Manual 28 | . 3 6 10 . 1 . 8 . . . Terminals 60 | . 10 9 16 11 . 5 8 1 . . Fabricators 2 | . . . . . . . 2 . . . Repair Stations 5 | . . 1 1 . . . 3 . . . Recycling Units . | . . . . . . . . . . . Scanalyzers 5 | . . 5 . . . . . . . . Garrison Access 7 | . . . 1 . 2 . 3 . 1 . Terminal Hacks 17 | . 5 4 3 1 . 2 1 1 . . Part Schematic 1 | . 1 . . . . . . . . . Prototype ID Bank 5 | . 2 2 1 . . . . . . . Emergency Access Points 2 | . . . . . . 1 . 1 . . Alert Level 1 | . . 1 . . . . . . . . Unreport Threat 2 | . . 1 1 . . . . . . . Recall Investigation 1 | . . . 1 . . . . . . . Registered Components 2 | . 1 . . . . . 1 . . . Zone Layout 1 | . 1 . . . . . . . . . Patrol Navigation 1 | . . . . . . 1 . . . . Security Stations 1 | . . . . 1 . . . . . . Fabricator Hacks . | . . . . . . . . . . . Repair Station Hacks . | . . . . . . . . . . . Recycling Unit Hacks . | . . . . . . . . . . . Scanalyzer 4 | . . 4 . . . . . . . . Retrieve Study 4 | . . 4 . . . . . . . . Garrison Access Hacks 4 | . . . 1 . 1 . 1 . 1 . Unlock Access 4 | . . . 1 . 1 . 1 . 1 . Unauthorized Hacks 10 | . . 2 2 . 1 . 5 . . . Terminals 3 | . . 1 1 . . . 1 . . . Track 1 | . . 1 . . . . . . . . Disrupt 1 | . . . . . . . 1 . . . Operators 1 | . . . 1 . . . . . . . Fabricators 1 | . . . . . . . 1 . . . Liberate 1 | . . . . . . . 1 . . . Repair Stations 4 | . . 1 1 . . . 2 . . . Patch 4 | . . 1 1 . . . 2 . . . Recycling Units . | . . . . . . . . . . . Scanalyzers . | . . . . . . . . . . . Garrison Access 2 | . . . . . 1 . 1 . . . Restock 1 | . . . . . 1 . . . . . Reprogram 1 | . . . . . . . 1 . . . Data Cores Recovered 1 | . . . 1 . . . . . . . Used . | . . . . . . . . . . . Hacking Detections 25 | . 4 4 3 4 1 2 6 . 1 . Full Trace Events 7 | . . 1 1 4 . 1 . . . . Feedback Events . | . . . . . . . . . . . Feedback Blocked . | . . . . . . . . . . . Robot Schematics Acquired . | . . . . . . . . . . . Robots Built . | . . . . . . . . . . . Authchips . | . . . . . . . . . . . Time . | . . . . . . . . . . . Total Robot Build Rating . | . . . . . . . . . . . Part Schematics Acquired 1 | . 1 . . . . . . . . . Parts Built . | . . . . . . . . . . . Authchips . | . . . . . . . . . . . Time . | . . . . . . . . . . . Total Part Build Rating . | . . . . . . . . . . . Part Studies Acquired 4 | . . 4 . . . . . . . . Parts Repaired . | . . . . . . . . . . . Time . | . . . . . . . . . . . Parts Recycled . | . . . . . . . . . . . Recycled Matter . | . . . . . . . . . . . Retrieved Matter . | . . . . . . . . . . . Retrieved Components . | . . . . . . . . . . . Parts Scanalyzed . | . . . . . . . . . . . Part Schematics Acquired . | . . . . . . . . . . . Parts Damaged . | . . . . . . . . . . . Bothacking | -11 -10 -9 -8 -8 -8 -8 -7 -7 -7 -7 ------------ Run | Yrd Mat Mat Mat Gar Mat Gar Fac Gar Fac Gar Used RIF Installer 3 | . . . . 1 . 1 . 1 . . Threat Obfuscator 1 | . . . . . . 1 . . . . Program Shield 1 | . . . . . . . . 1 . . Robots Hacked 27 | . . . . . . 9 15 3 . . Non-combat 9 | . . . . . . 1 8 . . . Combat 18 | . . . . . . 8 7 3 . . Robot Hacks Applied 28 | . . . . . . 9 16 3 . . parse_system 1 | . . . . . . . 1 . . . map_walls 1 | . . . . . . . 1 . . . drop_inventory 4 | . . . . . . . 4 . . . find_recycling 1 | . . . . . . . 1 . . . purge_threat 1 | . . . . . . . 1 . . . amplify_resonance 6 | . . . . . . . 3 3 . . disable_weapons 1 | . . . . . . 1 . . . . overwrite_iff 4 | . . . . . . 2 2 . . . formatsys_low 2 | . . . . . . 1 1 . . . formatsys_high 7 | . . . . . . 5 2 . . . Relay Couplers Released 52 | . . . . 21 3 20 . 8 . . Machine Destruction 45 | . . . . 21 . 16 . 8 . . Programmers 7 | . . . . . 3 4 . . . . Attached 13 | . . . . . . 7 4 2 . . Fabnet Peak Effective % . | . . . . . . . . . . . Robots Rewired . | . . . . . . . . . . . Allies Hacked . | . . . . . . . . . . . Hacks Repelled . | . . . . . . . . . . . Allies | -11 -10 -9 -8 -8 -8 -8 -7 -7 -7 -7 -------- Run | Yrd Mat Mat Mat Gar Mat Gar Fac Gar Fac Gar Total Allies 18 | . . . . . . 8 10 . . . Largest Group 4 | . . . . . . 4 3 . . . Highest-Rated Group 74 | . . . . . . 74 64 . . . Highest-Rated Ally 32 | . . . . . . 29 32 . . . Total Orders . | . . . . . . . . . . . Ally Attacks 77 | . . . . . . 30 47 . . . Total Damage 1474 | . . . . . . 568 906 . . . Kills 16 | . . . . . . 6 10 . . . Allies Corrupted . | . . . . . . . . . . . Allies Melted 1 | . . . . . . 1 . . . . Intel | -11 -10 -9 -8 -8 -8 -8 -7 -7 -7 -7 ------- Run | Yrd Mat Mat Mat Gar Mat Gar Fac Gar Fac Gar Active Infowar (turns) . | . . . . . . . . . . . Robot Analysis Total . | . . . . . . . . . . . Derelict Logs Recovered . | . . . . . . . . . . . Drone Launches . | . . . . . . . . . . . Drone Recoveries . | . . . . . . . . . . . Exploration | -11 -10 -9 -8 -8 -8 -8 -7 -7 -7 -7 ------------- Run | Yrd Mat Mat Mat Gar Mat Gar Fac Gar Fac Gar Turns Passed 14526 | 6 996 2428 1799 2513 192 1841 3100 1264 222 165 Spaces Moved 6981 | 1 552 958 997 1435 78 875 1428 492 108 57 Core . | . . . . . . . . . . . Treads 4131 | 1 552 958 190 6 . 564 1428 432 . . Legs 225 | . . . . . . . . 60 108 57 Wheels 2625 | . . . 807 1429 78 311 . . . . Hover . | . . . . . . . . . . . Flight . | . . . . . . . . . . . Fastest Speed 115 | 160 160 160 130 130 130 130 152 115 185 185 Average Speed 162 | 160 160 197 140 131 130 160 176 188 185 190 Slowest Speed 400 | 160 160 240 225 385 130 200 305 390 185 400 Overloaded Moves . | . . . . . . . . . . . Propulsion Burnouts . | . . . . . . . . . . . Robots Hopped . | . . . . . . . . . . . Potential Cave-ins . | . . . . . . . . . . . Cave-ins Triggered . | . . . . . . . . . . . Exploration Rate (%) 49 | 2 83 83 79 88 9 68 42 65 4 16 Regions Visited 10 Branch Regions . Pre-discovered Areas . | . . . . . . . . . . . Known Exits Taken 4 | . . . 1 . 1 . 1 . 1 . Unknown Exits Taken 3 | 1 1 1 . . . . . . . . Scrap Searched . | . . . . . . . . . . . Spaces Dug 3 | . . . . . . . 2 1 . . Terrain Destroyed 286 | . . . . 152 . 44 18 12 53 7 Melee 3 | . . . . . . . 2 1 . . Projectile 22 | . . . . . . . . 11 4 7 AOE 261 | . . . . 152 . 44 16 . 49 . Terrain Rammed . | . . . . . . . . . . . Walls Destroyed . | . . . . . . . . . . . Machines Disabled . | . . . . . . . . . . . Actions | -11 -10 -9 -8 -8 -8 -8 -7 -7 -7 -7 --------- Run | Yrd Mat Mat Mat Gar Mat Gar Fac Gar Fac Gar Total 8926 | 6 612 1285 1262 1796 135 1146 1784 686 119 95 Wait 652 | . 4 145 138 87 36 77 92 60 1 12 Move 6973 | . 551 957 996 1434 77 874 1428 491 108 57 Hop . | . . . . . . . . . . . Pick Up 156 | . 15 26 11 21 2 28 36 15 2 . Fast Attach 15 | . . 1 1 1 . 2 7 3 . . Attach 63 | . 1 5 4 6 . 13 22 9 1 2 Detach 2 | . . . . . . . 2 . . . Swap 134 | 2 3 12 12 15 1 23 49 16 . 1 Drop 107 | 4 6 27 10 13 3 13 18 13 . . Fire 668 | . 25 109 88 161 16 79 115 55 7 13 Melee 33 | . . . . . . 13 4 16 . . Ram 2 | . . . 1 . . . . 1 . . Kick . | . . . . . . . . . . . Crush 21 | . 7 3 1 . . . 9 1 . . Escape Stasis 99 | . . . . 57 . 24 2 6 . 10 Rewire 1 | . . . . 1 . . . . . . Trap . | . . . . . . . . . . . Miscellaneous . | . . . . . . . . . . . Route ------- -11/Scrapyard -10/Materials (discovered 3 exits: *Mat x2 / [*Min]) -9/Materials (discovered 3 exits: *Mat x2 / [*Min]) -8/Materials (discovered 5 exits: *Fac x3 / [*Sto] / Gar) -8/Garrison (discovered 4 exits: *Mat x4) -8/Materials -8/Garrison (discovered 2 exits: *Fac x2) -7/Factory (discovered 2 exits: [*Fac] / Gar) -7/Garrison (discovered 2 exits: *Fac x2) -7/Factory -7/Garrison History --------- Turn | Location | Event 7 | -11/Scrapyard | Discovered new exit (range 0) 7 | -11/Scrapyard | Entered Materials 81 | -10/Materials | Discovered new exit (range 19) 251 | -10/Materials | Discovered new exit (range 16) 310 | -10/Materials | Build established: Mutant 452 | -10/Materials | Discovered new exit (range 15) 1003 | -10/Materials | Entered another Materials area 1003 | -9/Materials | Evolved 2 slots: Utility x2 1489 | -9/Materials | Discovered new exit (range 5) 1734 | -9/Materials | Discovered new exit (range 6) 3016 | -9/Materials | Discovered new exit (range 12) 3431 | -9/Materials | Entered another Materials area 3431 | -8/Materials | Evolved 2 slots: Propulsion x1, Weapon x1 3715 | -8/Materials | Build established: Tank 3804 | -8/Materials | Garrison activated, responded to threat 3832 | -8/Materials | Discovered new exit (range 4) 4018 | -8/Materials | Identified exit to Garrison 4470 | -8/Materials | Discovered new exit (range 12) 4589 | -8/Materials | Discovered new exit (range 16) 4757 | -8/Materials | Discovered new exit (range 15) 5230 | -8/Materials | Entered Garrison 5246 | -8/Garrison | Triggered checkpoint 5493 | -8/Garrison | Garrison Relay disabled 5612 | -8/Garrison | Triggered checkpoint 5684 | -8/Garrison | Triggered checkpoint 5742 | -8/Garrison | Destroyed 8 combat bots 5950 | -8/Garrison | Destroyed 8 combat bots 5982 | -8/Garrison | Discovered new exit (range 14) 6218 | -8/Garrison | Triggered checkpoint 6295 | -8/Garrison | Garrison Relay disabled 6312 | -8/Garrison | Triggered checkpoint 6392 | -8/Garrison | Discovered new exit (range 6) 6509 | -8/Garrison | Discovered new exit (range 15) 6667 | -8/Garrison | Discovered new exit (range 10) 6700 | -8/Garrison | Triggered checkpoint 6741 | -8/Garrison | Garrison Relay disabled 7205 | -8/Garrison | Phase Generator disabled 7258 | -8/Garrison | Build established: Scavenger-Tank 7279 | -8/Garrison | Learned Materials security intel 7574 | -8/Garrison | Garrison Relay disabled 7576 | -8/Garrison | Triggered checkpoint 7627 | -8/Garrison | Installed Relay Interface Framework 7700 | -8/Garrison | Garrison Relay disabled 7743 | -8/Garrison | Entered Materials 7782 | -8/Materials | Identified exit to Garrison 7882 | -8/Materials | Garrison activated, responded to threat 7935 | -8/Materials | Entered Garrison 7937 | -8/Garrison | Build established: Bothacker-Tank 7973 | -8/Garrison | Triggered checkpoint 8117 | -8/Garrison | Expanded RIF knowledge: Threat Obfuscation 8354 | -8/Garrison | Garrison Relay disabled 8492 | -8/Garrison | Core integrity fell below 50% 8551 | -8/Garrison | Triggered checkpoint 8556 | -8/Garrison | Lost 5 parts (1p1n1u2w) 8653 | -8/Garrison | Triggered checkpoint 8675 | -8/Garrison | Garrison Relay disabled 8770 | -8/Garrison | Discovered new exit (range 10) 8899 | -8/Garrison | Garrison Relay disabled 8903 | -8/Garrison | Build established: Bothacker-Gunner 9103 | -8/Garrison | Triggered checkpoint 9467 | -8/Garrison | Discovered new exit (range 13) 9493 | -8/Garrison | Triggered checkpoint 9536 | -8/Garrison | Lost 3 allies 9688 | -8/Garrison | Garrison Relay disabled 9776 | -8/Garrison | Entered Factory 9776 | -7/Factory | Accompanied by 1 ally 9776 | -7/Factory | Evolved 2 slots: Propulsion x1, Utility x1 10020 | -7/Factory | Found Rocket Array 10398 | -7/Factory | Garrison activated, responded to threat 10402 | -7/Factory | Build established: Bothacker-Tank 10594 | -7/Factory | Lost 5 parts (1n1u3w) 10599 | -7/Factory | System corruption reached 10% 10712 | -7/Factory | Lost 4 parts (1p1n2u) 11349 | -7/Factory | Discovered new exit (range 6) 12176 | -7/Factory | First assault squad dispatched 12306 | -7/Factory | Lost 3 parts (2n1w) 12453 | -7/Factory | Lost 4 parts (1n2u1w) 12713 | -7/Factory | Garrison activated, responded to threat 12876 | -7/Factory | Identified exit to Garrison 12876 | -7/Factory | Entered Garrison 12901 | -7/Garrison | Expanded RIF knowledge: Program Shield 12926 | -7/Garrison | Triggered checkpoint 12975 | -7/Garrison | Garrison Relay disabled 13166 | -7/Garrison | Triggered checkpoint 13233 | -7/Garrison | Core integrity fell below 50% 13332 | -7/Garrison | Discovered new exit (range 10) 13350 | -7/Garrison | Triggered checkpoint 13413 | -7/Garrison | Lost 3 parts (1p1n1w) 13437 | -7/Garrison | Garrison Relay disabled 13746 | -7/Garrison | Triggered checkpoint 13973 | -7/Garrison | Discovered new exit (range 10) 14102 | -7/Garrison | Triggered checkpoint 14116 | -7/Garrison | Build established: Bothacker-Mutant 14140 | -7/Garrison | Entered Factory 14362 | -7/Factory | Identified exit to Garrison 14362 | -7/Factory | Entered Garrison 14516 | -7/Garrison | Core integrity fell below 20% 14527 | -7/Garrison | Destroyed by G-47 Trooper with Particle Gun Last Messages --------------- 14510_ Overheating: Matter decay (-22). 14510_ Slug penetrates B-48 Gladiator. 14510_ P-60 Hacker suffers critical hit (Blast). 14510_ Destroyed Imp. Heat Sink. 14512_ Acquired 43 matter. 14513_ Relay Coupler [Grunt] destroyed. 14513_ System corrupted by crushing effect (+5). 14513_ Biometal Leg destroyed. 14514_ Power failure, Lgt. Neutrino Core shutdown. 14515_ Imp. Light Armor Plating destroyed. 14517_ Overheating: Energy bleed (-25). 14522_ Hvy. Mass Driver destroyed. 14523_ IHV 2U8VKQKOPD3LHRB:P&STKZPHS:PP:D% 14523_ Myomer Leg destroyed. 14525_ Critical hit (Burn: +37). 14525_ Lgt. Neutrino Core destroyed. 14527_ P-60 Hacker heat damages Shock Rifle. 14527_ Relay Coupler [Swarmer] destroyed. 14527_ System corrupted by crushing effect (+3). Map ----- +----------------------------------------------------+ | ?????????????????????????????????????????????????? | | ?????????????????????????????????????????????????? | | ?????????????????????????????????????????????????? | | ?????????????????????????????????????????????????? | | ?????????????????????????????????????????????????? | | ?????????????????????????????????????????????????? | | ?????????????????????????????????????????????????? | | ?????????????????????????????????????????????????? | | ?????????????????????????????????????????????????? | | ?????????????????????????????????????????????????? | | ?????????????????????????????????????????????????? | | ?????????????????????????????????????????????????? | | ?????????????????????????????????????????????????? | | ?????????????????????????????????????????????????? | | ?????????????????????????????????????????????????? | | ?????????????????????????????????????????????????? | | ?????????????????????????????????????????????????? | | ?????????????????????????????????????????????????? | | ?????????????????????????????????????????????????? | | ?????????????????????????????????????????????????? | | ???????????????????????##????????????????????????? | | ???????????????????????? ????????????????????????? | | ????????????????## ????## ###????????????????????? | | ???????????# #; ###;+#;#####????????????????? | | ?????????? % p = g %g%= #????????????????? | | ?????????? [%*% @ * #????????????????? | | ?????????? %%=% p b= #????????????????? | | ???????????# %#########%;## #????????????????? | | ????????????????????????# ### #????????????????? | | ???????????????????????#; #?# #????????????????? | | ???????????????????????## #?# #????????????????? | | ????????????????????????# #?# ^ #????????????????? | | ????????????????????????# #?#^ #????????????????? | | ????????????????????????# #?# #????????????????? | | ???????????????????????? ??# #????????????????? | | ???????????????????????? ??# #????????????????? | | ????????????????????????##??# #????????????????? | | ????????????????????????????# #????????????????? | | ????????????????????????????# #????????????????? | | ????????????????????????????# #????????????????? | | ????????????????????????????# #????????????????? | | ????????????????????????????# #????????????????? | | ????????????????????????????# #????????????????? | | ????????????????????????????# #????????????????? | | ????????????????????????????# #################" | | ????????????????????????????# | | ????????????????????????????# | | ????????????????????????????# | | ????????????????????????????################# ### | | ????????????????????????????????????????????# #?? | +----------------------------------------------------+ Best States ------------- Heat Dissipation 61 Energy Generation 19 Energy Capacity 280 Matter Stores 300 Matter Capacity 300 Sight Range 16 Terrain Scan Density 10 Armor Coverage 600 Evasion (%) 55 Recoil Reduction 4 Relay Coupler Types 3 Relay Coupler Value 75 Item Schematics ----------------- Huge Storage Unit | -10/Materials | Hacked Robot Schematics ------------------ None Fabricated ------------ Nothing Repaired ---------- Nothing Studied --------- Autogun | -9/Materials | Hacked Lgt. Treads | -9/Materials | Hacked Datajack | -9/Materials | Hacked Imp. Treads | -9/Materials | Hacked Alien Tech Used ----------------- None Achievements -------------- None Challenges ------------ None Game ------ Seed TrapAntisysCore Manual? 0 Play Time 01:36:57 Cumulative 74.5 hours Start 2026.08.05 @ 19:05:26 End 2026.08.05 @ 21:09:11 Sessions 3 Manual Loads 0 Difficulty Rogue Special Mode None Game No. 311 Rogue 266 Adventurer 45 Explorer 0 Win Type - Total 3 Types 3/0/0/0/0/0/0/0/0/0 Lore% 68 Gallery% 48 Achievement% 48 Wizard Run 0 Options --------- Layout 1 ASCII 0 Keyboard 0 Movement Numpad Keybinds 0 Fullscreen 1 Font 24/Smallcaps Map View 50x35 Zoom Use 0% Tactical HUD 1 Map Filters NONE Filters NONE Steam 1 RUN: 6ba5730f-6027-4cd3-91f8-4e4856adcd5e